bitfinex-derivatives/quotes_BTCF0:USTF0_20240910
["timestamp","ask_amount","ask_price","bid_price","bid_amount"]
[1725941717922,0.08824,56661.0,56660.0,0.0004]
[1725941718123,0.08824,56661.0,56660.0,0.088641]
[1725941718314,0.1469,56665.0,56661.0,0.088238]
[1725941718517,0.088235,56664.0,56662.0,0.1]
[1725941719623,0.088242,56660.0,56655.0,0.1041]
[1725941719823,0.088243,56659.0,56658.0,0.001]
[1725941720316,0.163,56661.0,56652.0,0.0041]
[1725941720520,0.163,56661.0,56654.0,0.088249]
[1725941720521,0.088247,56657.0,56654.0,0.088249]
[1725941720715,0.088247,56657.0,56651.0,0.03352532]
[1725941720922,0.088247,56657.0,56655.0,0.001]
[1725941721725,0.090247,56657.0,56656.0,0.088247]
[1725941722437,0.095247,56657.0,56656.0,0.088247]
[1725941723124,0.08824,56661.0,56658.0,0.088243]
[1725941723331,0.07463433,56665.0,56656.0,0.249247]
[1725941723332,0.008,56657.0,56656.0,0.249247]
[1725941723517,0.0084,56657.0,56656.0,0.249247]
[1725941723718,0.0084,56657.0,56656.0,0.294247]
[1725941723932,0.0054,56657.0,56656.0,0.295247]
[1725941725320,0.0004,56657.0,56656.0,0.294247]
[1725941726337,0.0054,56657.0,56656.0,0.295247]
[1725941726537,0.0054,56657.0,56656.0,0.090247]
[1725941732131,0.093645,56657.0,56656.0,0.090247]
[1725941735443,0.12225187,56657.0,56656.0,0.090247]
[1725941737447,0.093645,56657.0,56656.0,0.090247]
[1725941738044,0.18189,56657.0,56656.0,0.002]
[1725941742449,0.430135,56657.0,56656.0,0.002]
[1725941742645,0.430135,56657.0,56656.0,0.05486385]
[1725941742845,0.430135,56657.0,56656.0,0.002]
[1725941743853,1.559655,56657.0,56656.0,0.002]
[1725941749983,0.270135,56657.0,56656.0,0.002]
[1725941750162,0.0054,56657.0,56656.0,0.002]
[1725941750368,0.1432,56670.0,56663.0,0.088236]
[1725941750571,0.08823,56667.0,56664.0,0.088234]
[1725941750775,0.08823,56667.0,56666.0,0.1604]
[1725941751071,0.11207464,56667.0,56666.0,0.1604]
[1725941751474,0.08823,56667.0,56666.0,0.1604]
[1725941751677,0.095,56670.0,56666.0,0.248631]
[1725941751975,0.0457,56670.0,56669.0,0.0004]
[1725941752177,0.06931474,56670.0,56669.0,0.0004]
[1725941752672,0.68693974,56670.0,56669.0,0.0004]
[1725941753174,0.68693974,56670.0,56669.0,0.0014]
[1725941753677,0.68993974,56670.0,56669.0,0.0024]
[1725941754864,0.16053974,56670.0,56669.0,0.0024]
[1725941756067,0.68993974,56670.0,56669.0,0.0024]
[1725941756669,0.93816474,56670.0,56669.0,0.0024]
[1725941756869,1.53816474,56670.0,56669.0,0.0024]
[1725941760684,1.62638974,56670.0,56669.0,0.0024]
[1725941761074,0.17647,56664.0,56663.0,0.0004]
[1725941761386,0.425105,56664.0,56663.0,1e-06]
[1725941761584,1.42315693,56664.0,56663.0,1e-06]
[1725941761776,1.58315693,56664.0,56663.0,1e-06]
[1725941762577,1.58315693,56664.0,56656.0,0.00641]
[1725941762578,0.17649,56657.0,56656.0,0.00641]
[1725941762775,0.33689,56657.0,56656.0,0.00231]
[1725941764284,0.33989,56657.0,56656.0,0.00231]
[1725941764875,0.34089,56657.0,56656.0,0.00231]
[1725941765982,0.34389,56657.0,56656.0,0.00231]
[1725941767382,0.18389,56657.0,56656.0,0.00231]
[1725941767583,0.34389,56657.0,56656.0,0.00231]
[1725941768879,0.36756734,56657.0,56656.0,0.00231]
[1725941772784,0.11932234,56657.0,56656.0,0.00231]
[1725941772989,0.11932234,56657.0,56656.0,0.05513401]
[1725941773489,0.11932234,56657.0,56656.0,0.00231]
[1725941774088,0.11732234,56657.0,56656.0,0.090557]
[1725941774290,0.093645,56657.0,56656.0,0.090557]
[1725941775891,0.093645,56657.0,56656.0,0.16099903]
[1725941776091,0.093645,56657.0,56656.0,0.090557]
[1725941776484,0.093645,56657.0,56656.0,0.16099903]
[1725941776791,0.093645,56657.0,56656.0,0.090557]
[1725941777093,0.093645,56657.0,56656.0,0.16099903]
[1725941777686,0.093645,56657.0,56656.0,0.090557]
[1725941778084,0.093645,56657.0,56656.0,0.16099903]
[1725941780091,0.093645,56657.0,56656.0,0.090557]
[1725941780591,0.0054,56657.0,56656.0,0.090557]
[1725941780792,0.0054,56657.0,56656.0,0.17860954]
[1725941780998,0.0054,56657.0,56656.0,0.27349592]
[1725941781381,0.0054,56657.0,56656.0,0.2735157]
[1725941781586,0.0054,56657.0,56656.0,0.27351724]
[1725941782584,0.0054,56657.0,56656.0,0.090557]
[1725941788397,0.093645,56657.0,56656.0,0.090557]
[1725941790695,0.093645,56657.0,56656.0,0.27347703]
[1725941791697,0.093645,56657.0,56656.0,0.18542449]
[1725941791898,0.093645,56657.0,56656.0,0.2735192]
[1725941792111,0.0054,56657.0,56656.0,0.2735192]
[1725941792997,0.0054,56657.0,56656.0,0.18542449]
[1725941793203,0.0054,56657.0,56656.0,0.27352202]
[1725941793588,0.0054,56657.0,56656.0,0.18542449]
[1725941793792,0.0054,56657.0,56656.0,0.29132351]
[1725941793993,0.0054,56657.0,56656.0,0.18542449]
[1725941794294,0.0054,56657.0,56656.0,0.29114228]
[1725941794600,0.0054,56657.0,56656.0,0.18542449]
[1725941794800,0.0054,56657.0,56656.0,0.29114384]
[1725941795107,0.0054,56657.0,56656.0,0.18311449]
[1725941795498,0.0054,56657.0,56656.0,0.28883625]
[1725941795697,0.0054,56657.0,56656.0,0.18311449]
[1725941796207,0.093645,56657.0,56656.0,0.09486749]
[1725941796403,0.0054,56657.0,56654.0,0.0881119]
[1725941796605,0.088247,56656.0,56655.0,0.0881119]
[1725941797004,0.08825,56654.0,56653.0,0.0881119]
[1725941797205,0.088252,56653.0,56652.0,0.0881119]
[1725941797401,0.088253,56652.0,56651.0,0.1763669]
[1725941797604,0.088653,56652.0,56651.0,0.18347871]
[1725941797906,0.248253,56652.0,56651.0,0.08814708]
[1725941798099,0.088256,56650.0,56649.0,0.088257]
[1725941798296,0.088656,56650.0,56649.0,0.18356144]
[1725941799702,0.088656,56650.0,56649.0,0.18956144]
[1725941800201,0.0004,56650.0,56649.0,0.18956144]
[1725941800811,0.0004,56650.0,56649.0,0.19456144]
[1725941801306,0.0004,56650.0,56649.0,0.3002832]
[1725941801509,0.0004,56650.0,56649.0,0.19456144]
[1725941802504,0.0004,56650.0,56649.0,0.28281944]
[1725941802708,0.0004,56653.0,56652.0,0.088253]
[1725941802913,0.0004,56653.0,56652.0,0.34395744]
[1725941803520,0.0004,56653.0,56652.0,0.45721465]
[1725941803810,0.088242,56660.0,56657.0,0.088245]
[1725941804114,0.088242,56660.0,56652.0,0.36896165]
[1725941804115,0.088242,56660.0,56658.0,0.088243]
[1725941804414,0.088242,56660.0,56659.0,0.0004]
[1725941805510,0.340484,56660.0,56659.0,0.0004]
[1725941805910,0.342484,56660.0,56659.0,0.0004]
[1725941807912,0.342484,56660.0,56659.0,0.05330024]
[1725941808407,0.342484,56660.0,56659.0,0.0004]
[1725941812809,0.342484,56660.0,56659.0,0.07093865]
[1725941813017,0.342484,56660.0,56659.0,0.0004]
[1725941819918,0.342484,56660.0,56659.0,0.07093865]
[1725941820115,0.342484,56660.0,56659.0,0.07092676]
[1725941820315,0.342484,56660.0,56659.0,0.0004]
[1725941821124,0.342484,56660.0,56659.0,0.05329816]
[1725941821522,0.430726,56660.0,56659.0,0.0004]
[1725941824524,0.342484,56660.0,56659.0,0.0004]
[1725941824830,0.182484,56660.0,56659.0,0.0004]
[1725941825018,0.182484,56660.0,56659.0,0.05331928]
[1725941825514,0.094242,56660.0,56659.0,0.0004]
[1725941825720,0.094242,56660.0,56659.0,0.07092677]
[1725941825914,0.094242,56660.0,56659.0,0.0004]
[1725941826114,0.094242,56660.0,56659.0,0.07097212]
[1725941827521,0.094242,56660.0,56659.0,0.09555287]
[1725941827925,0.094242,56660.0,56659.0,0.18376306]
[1725941828623,0.094242,56660.0,56659.0,0.27200506]
[1725941829231,0.094242,56660.0,56659.0,0.0004]
[1725941829828,0.094242,56660.0,56659.0,0.08861019]
[1725941831222,0.094242,56660.0,56659.0,0.0004]
[1725941831623,0.094242,56660.0,56659.0,0.09581191]
[1725941832018,0.094242,56660.0,56659.0,0.18405391]
[1725941832223,0.094242,56660.0,56659.0,0.27224521]
[1725941832631,0.094242,56660.0,56659.0,0.34405391]
[1725941833329,0.094242,56660.0,56659.0,0.09581191]
[1725941833634,0.254242,56660.0,56659.0,0.18398892]
[1725941833830,0.254242,56660.0,56659.0,0.0004]
[1725941834034,0.342483,56660.0,56659.0,0.0004]
[1725941834329,0.254241,56660.0,56659.0,0.0004]
[1725941835335,0.342482,56660.0,56659.0,0.0004]
[1725941835533,0.3663621,56660.0,56659.0,0.0004]
[1725941835733,0.2781211,56660.0,56659.0,0.0004]
[1725941836427,0.3663621,56660.0,56659.0,0.0004]
[1725941837029,0.2781211,56660.0,56659.0,0.0004]
[1725941837229,0.3663621,56660.0,56659.0,0.0004]
[1725941838231,0.2781211,56660.0,56659.0,0.0004]
[1725941838626,0.1181211,56660.0,56659.0,0.0004]
[1725941839330,0.2781211,56660.0,56659.0,0.0004]
[1725941840938,0.3663621,56660.0,56659.0,0.0004]
[1725941841140,0.39497169,56660.0,56659.0,0.0004]
[1725941841731,0.44327169,56660.0,56659.0,0.0004]
[1725941842131,0.38327169,56660.0,56659.0,0.0004]
[1725941842539,0.3546621,56660.0,56659.0,0.0004]
[1725941843137,0.3546621,56660.0,56659.0,0.05331882]
[1725941844238,0.4146621,56660.0,56659.0,0.0004]
[1725941847544,0.3663621,56660.0,56659.0,0.0004]
[1725941850745,0.50039881,56660.0,56659.0,0.0004]
[1725941851647,0.58863981,56660.0,56659.0,0.0004]
[1725941852347,0.48321457,56660.0,56659.0,0.0004]
[1725941852943,0.39497357,56660.0,56659.0,0.0004]
[1725941853143,0.48321457,56660.0,56659.0,0.0004]
[1725941854250,0.39497357,56660.0,56659.0,0.0004]
[1725941855250,0.39497402,56660.0,56659.0,0.0004]
[1725941856453,0.39497401,56660.0,56659.0,0.0004]
[1725941857551,0.23497267,56660.0,56659.0,0.0004]
[1725941857749,0.2063621,56660.0,56659.0,0.0004]
[1725941857942,0.2063621,56660.0,56659.0,0.07094741]
[1725941859645,0.2063621,56660.0,56659.0,0.07325741]
[1725941861245,0.1181211,56660.0,56659.0,0.07325741]
[1725941861447,0.2063621,56660.0,56659.0,0.07325741]
[1725941861754,0.1181211,56660.0,56659.0,0.00271]
[1725941863759,0.1181211,56660.0,56659.0,0.090952]
[1725941863760,0.006,56660.0,56659.0,0.090952]
[1725941864051,0.006,56660.0,56659.0,0.37456144]
[1725941864252,0.006,56660.0,56659.0,0.28637013]
[1725941865055,0.006,56660.0,56659.0,0.28651563]
[1725941865443,0.006,56660.0,56659.0,0.30998865]
[1725941866159,0.006,56660.0,56659.0,0.39816669]
[1725941866753,0.006,56660.0,56659.0,0.37469367]
[1725941866954,0.094241,56660.0,56659.0,0.190952]
[1725941867358,0.094241,56660.0,56659.0,0.090952]
[1725941872657,0.19966624,56660.0,56659.0,0.090952]
[1725941872859,0.22827485,56660.0,56659.0,0.090952]
[1725941875461,0.22827485,56660.0,56659.0,0.190952]
[1725941878962,0.12284961,56660.0,56659.0,0.190952]
[1725941879766,0.094241,56660.0,56659.0,0.27913004]
[1725941879967,0.006,56660.0,56659.0,0.28668195]
[1725941880572,0.006,56660.0,56659.0,0.28656572]
[1725941881171,0.006,56660.0,56659.0,0.29236579]
[1725941881469,0.006,56660.0,56659.0,0.28656572]
[1725941882775,0.006,56660.0,56659.0,0.39236579]
[1725941883571,0.0041,56666.0,56665.0,0.088233]
[1725941883783,0.088223,56672.0,56671.0,0.088224]
[1725941883971,0.088223,56672.0,56671.0,0.188624]
[1725941885080,0.092223,56672.0,56671.0,0.188624]
[1725941885475,0.094223,56672.0,56671.0,0.188624]
[1725941885670,0.006,56672.0,56671.0,0.188624]
[1725941887387,0.006,56672.0,56671.0,0.25906662]
[1725941888677,0.006,56672.0,56671.0,0.28307935]
[1725941890280,0.006,56672.0,56671.0,0.21263673]
[1725941890583,0.006,56672.0,56671.0,0.28307935]
[1725941891385,0.006,56672.0,56671.0,0.21263673]
[1725941891979,0.006,56672.0,56671.0,0.28307935]
[1725941892580,0.006,56672.0,56671.0,0.21263673]
[1725941897886,0.092308,56681.0,56671.0,1.25377273]
[1725941898089,0.02859803,56680.0,56679.0,0.088211]
[1725941898291,0.0478,56690.0,56682.0,0.088205]
[1725941898292,0.088205,56683.0,56682.0,0.088205]
[1725941898488,0.11680262,56683.0,56682.0,0.188605]
[1725941898988,0.11680261,56683.0,56682.0,0.188605]
[1725941899889,0.11680261,56683.0,56682.0,0.189605]
[1725941900790,0.11680261,56683.0,56682.0,0.090605]
[1725941901801,0.02859761,56683.0,56682.0,0.190605]
[1725941901987,0.02859761,56684.0,56682.0,0.1024]
[1725941902296,0.02859761,56684.0,56683.0,0.188605]
[1725941902485,0.10542524,56689.0,56688.0,0.088197]
[1725941902691,0.02859476,56689.0,56688.0,0.088597]
[1725941902884,0.15322524,56690.0,56688.0,0.088597]
[1725941902885,0.0478,56690.0,56688.0,0.088597]
[1725941903091,0.135995,56690.0,56689.0,0.1004]
[1725941903407,0.135995,56690.0,56689.0,0.188196]
[1725941904093,0.0478,56690.0,56689.0,0.188196]
[1725941904295,0.088188,56694.0,56689.0,0.1]
[1725941904487,0.088188,56694.0,56693.0,0.1004]
[1725941905000,0.088182,56698.0,56695.0,0.088186]
[1725941905191,0.147,56701.0,56698.0,0.1]
[1725941905192,0.1429,56701.0,56698.0,0.1]
[1725941905500,0.08818,56699.0,56698.0,0.1]
[1725941906394,0.1674067,56701.0,56700.0,0.088179]
[1725941906395,0.0720067,56701.0,56700.0,0.088179]
[1725941906589,0.088177,56702.0,56701.0,0.088177]
[1725941906789,0.088177,56702.0,56701.0,0.088577]
[1725941906982,0.088177,56702.0,56701.0,0.088177]
[1725941907292,0.11251653,56702.0,56701.0,0.088177]
[1725941907788,0.11251653,56702.0,56701.0,0.001]
[1725941908092,0.088169,56707.0,56701.0,0.101]
[1725941908399,0.11194622,56707.0,56706.0,0.1004]
[1725941909292,0.0485,56708.0,56706.0,0.188569]
[1725941909496,0.0485,56708.0,56707.0,0.0004]
[1725941909796,0.14581204,56708.0,56706.0,0.00095242]
[1725941909983,0.09771204,56707.0,56706.0,0.08912142]
[1725941910395,0.09771204,56707.0,56706.0,0.18912142]
[1725941910885,0.18588004,56707.0,56706.0,0.00095242]
[1725941911090,0.18588004,56707.0,56706.0,0.00195242]
[1725941911292,0.1171526,56707.0,56706.0,0.101]
[1725941911589,0.1171526,56707.0,56706.0,0.189169]
[1725941911798,0.1171526,56707.0,56706.0,0.188169]
[1725941911996,0.1171526,56707.0,56706.0,0.190169]
[1725941913897,0.11715061,56707.0,56706.0,0.190169]
[1725941914899,0.02898261,56707.0,56706.0,0.190169]
[1725941915099,0.11715061,56707.0,56706.0,0.002]
[1725941915399,0.19367324,56707.0,56706.0,0.002]
[1725941915602,0.22225585,56707.0,56706.0,0.102]
[1725941915797,0.11715061,56707.0,56706.0,0.002]
[1725941916194,0.11715061,56707.0,56706.0,0.090169]
[1725941916393,0.19358672,56707.0,56706.0,0.090169]
[1725941916694,0.02898261,56707.0,56706.0,0.090169]
[1725941916901,0.0004,56707.0,56706.0,0.090169]
[1725941917404,0.0004,56707.0,56706.0,0.11462723]
[1725941919900,0.0004,56707.0,56706.0,0.21462723]
[1725941920112,0.0004,56707.0,56706.0,0.27462723]
[1725941925612,0.176736,56707.0,56706.0,0.002]
[1725941925908,0.20531906,56707.0,56706.0,0.00049387]
[1725941926295,0.31033778,56707.0,56706.0,0.00049387]
[1725941926709,0.20531906,56707.0,56706.0,0.00049387]
[1725941926910,0.31033778,56707.0,56706.0,0.00049387]
[1725941927311,0.20531906,56707.0,56706.0,0.00049387]
[1725941928409,0.14157443,56707.0,56706.0,0.00049387]
[1725941928605,0.14157352,56707.0,56706.0,0.00049387]
[1725941929010,0.11299137,56707.0,56706.0,0.00049387]
[1725941929213,0.11299137,56707.0,56706.0,0.08866287]
[1725941929514,0.14157301,56707.0,56706.0,0.08866287]
[1725941930010,0.14157301,56707.0,56706.0,0.00049387]
[1725941931012,0.22974101,56707.0,56706.0,0.00049387]
[1725941931511,0.29771956,56707.0,56706.0,0.00049387]
[1725941932297,0.29771956,56707.0,56706.0,0.00012193]
[1725941932503,0.22974101,56707.0,56706.0,0.00012193]
[1725941932904,0.088172,56704.0,56703.0,6.8e-07]
[1725941933103,0.16,56702.0,56697.0,0.0041]
[1725941933303,0.0971,56703.0,56698.0,2.4e-07]
[1725941933504,0.0971,56703.0,56694.0,0.0041]
[1725941933505,0.088186,56695.0,56694.0,0.0041]
[1725941933713,0.088194,56690.0,56689.0,0.07442966]
[1725941933911,0.0004,56690.0,56688.0,0.07032966]
[1725941934109,0.088596,56689.0,56688.0,0.07032966]
[1725941934310,0.088596,56689.0,56687.0,0.18389344]
[1725941934708,0.0004,56688.0,56687.0,0.18389344]
[1725941934906,0.088196,56689.0,56687.0,0.18389344]
[1725941935105,0.088196,56689.0,56688.0,0.0004]
[1725941935610,0.088196,56689.0,56688.0,0.088597]
[1725941936317,0.088196,56689.0,56688.0,0.15895279]
[1725941936812,0.088196,56689.0,56688.0,0.17495279]
[1725941938006,0.0045,56695.0,56690.0,0.088194]
[1725941938208,0.088192,56692.0,56691.0,0.248191]
[1725941939410,0.088192,56692.0,56691.0,0.165]
[1725941939920,0.088192,56692.0,56691.0,0.005]
[1725941940217,0.088192,56692.0,56691.0,0.01]
[1725941944709,0.176384,56692.0,56691.0,0.01]
[1725941946610,0.088192,56692.0,56691.0,0.098193]
[1725941949212,0.02420612,56695.0,56691.0,0.01]
[1725941949425,0.02420612,56695.0,56694.0,0.1604]
[1725941950821,0.11239212,56695.0,56694.0,0.248588]
[1725941951619,0.0004,56695.0,56694.0,0.248588]
[1725941952123,0.0041,56702.0,56694.0,1.377748]
[1725941952316,0.088573,56704.0,56701.0,0.0004]
[1725941952626,0.088573,56704.0,56703.0,0.088174]
[1725941953418,0.088173,56704.0,56703.0,0.088174]
[1725941953807,0.11200545,56704.0,56703.0,0.088174]
[1725941955219,0.11200545,56704.0,56703.0,0.090174]
[1725941955711,0.186263,56710.0,56703.0,0.090174]
[1725941955712,0.0041,56710.0,56703.0,0.23226514]
[1725941955913,0.088162,56711.0,56709.0,0.16]
[1725941956109,0.088162,56711.0,56710.0,0.0004]
[1725941956421,0.088162,56711.0,56709.0,0.07071248]
[1725941956623,0.0004,56710.0,56709.0,0.07071248]
[1725941956822,0.0004,56710.0,56709.0,0.15887748]
[1725941957513,0.0004,56710.0,56709.0,0.088565]
[1725941958315,0.0004,56710.0,56709.0,0.15887748]
[1725941958522,0.0004,56710.0,56709.0,0.088565]
[1725941958815,0.0004,56710.0,56709.0,0.15887748]
[1725941959220,0.0004,56710.0,56709.0,0.31887748]
[1725941959417,0.0004,56710.0,56709.0,0.31883227]
[1725941960315,0.0004,56710.0,56709.0,0.248565]
[1725941960522,0.0004,56710.0,56709.0,0.31882506]
[1725941960721,0.0004,56710.0,56709.0,0.32113506]
[1725941960929,0.0004,56710.0,56709.0,0.250875]
[1725941961625,0.0004,56710.0,56709.0,0.32112106]
[1725941963022,0.0004,56710.0,56709.0,0.16231]
[1725941963324,0.0289806,56710.0,56709.0,0.16231]
[1725941963523,0.10574463,56710.0,56709.0,0.250475]
[1725941963828,0.0289806,56710.0,56709.0,0.250475]
[1725941964520,0.0289806,56710.0,56709.0,0.00231]
[1725941964521,0.1171436,56710.0,56709.0,0.00231]
[1725941964717,0.1171436,56710.0,56709.0,0.090475]
[1725941965131,0.0289806,56710.0,56709.0,0.090475]
[1725941966822,0.02898092,56710.0,56709.0,0.090475]
[1725941968824,0.10570963,56710.0,56709.0,0.1434]
[1725941969123,0.02898092,56710.0,56709.0,0.231565]
[1725941969617,0.02897927,56710.0,56709.0,0.231565]
[1725941970023,0.0004,56710.0,56709.0,0.231565]
[1725941974729,0.03277465,56717.0,56709.0,0.231565]
[1725941975037,0.02867465,56717.0,56716.0,0.1604]
[1725941975335,0.02867465,56717.0,56716.0,0.248554]
[1725941975733,0.02867465,56717.0,56716.0,0.25726697]
[1725941976235,0.02867465,56717.0,56716.0,0.25826697]
[1725941977842,0.02867465,56717.0,56716.0,0.25926697]
[1725941981130,0.02867465,56717.0,56716.0,0.28267062]
[1725941981530,0.02867465,56717.0,56716.0,0.27395765]
[1725941982237,0.20497865,56717.0,56716.0,0.0024]
[1725941982429,0.11682665,56717.0,56716.0,0.0024]
[1725941984738,0.20497865,56717.0,56716.0,0.0024]
[1725941984934,0.29256158,56717.0,56711.0,0.18342996]
[1725941985136,0.12324013,56712.0,56711.0,0.02342996]
[1725941985351,0.088163,56710.0,56709.0,0.088163]
[1725941985539,0.11714351,56710.0,56709.0,0.088163]
[1725941985733,0.18483755,56710.0,56709.0,0.088163]
[1725941986645,0.18426905,56710.0,56709.0,0.088163]
[1725941987246,0.18426905,56710.0,56709.0,0.11267981]
[1725941988146,0.18426905,56710.0,56709.0,0.21267981]
[1725941988740,0.18626905,56710.0,56709.0,0.21267981]
[1725941992442,0.18626905,56710.0,56709.0,0.12451681]
[1725941992946,0.090163,56710.0,56709.0,0.12451681]
[1725941993342,0.090163,56710.0,56709.0,0.02451681]
[1725941993543,0.090163,56710.0,56705.0,0.08817]
[1725941993544,0.088169,56706.0,56705.0,0.08817]
[1725941993746,0.088169,56706.0,56705.0,0.18817]
[1725941993747,0.088569,56706.0,56705.0,0.18817]
[1725941994049,0.088569,56706.0,56705.0,0.28321834]
[1725941994654,0.088569,56706.0,56705.0,0.28421834]
[1725941996056,0.088569,56706.0,56705.0,0.30869543]
[1725941996352,0.088569,56706.0,56705.0,0.30969543]
[1725941997957,0.0004,56706.0,56705.0,0.30969543]
[1725941999051,0.0004,56706.0,56705.0,0.42302059]
[1725942000252,0.0004,56712.0,56711.0,0.088161]
[1725942000554,0.0004,56712.0,56711.0,0.28360934]
[1725942000755,0.02897975,56712.0,56711.0,0.188561]
[1725942001360,0.02857975,56712.0,56711.0,0.188561]
[1725942001558,0.10569565,56714.0,56713.0,0.088158]
[1725942001754,0.02857954,56716.0,56715.0,0.088155]
[1725942001755,0.10569565,56716.0,56715.0,0.088155]
[1725942001951,0.10567505,56719.0,56716.0,0.52896]
[1725942002166,0.0041,56722.0,56718.0,0.16]
[1725942002167,0.10567505,56722.0,56718.0,0.16]
[1725942002449,0.0041,56725.0,56718.0,0.1608]
[1725942002450,0.10977505,56725.0,56718.0,0.1608]
[1725942002656,0.02857483,56724.0,56717.0,0.0486]
[1725942002859,0.10567505,56726.0,56725.0,0.08814]
[1725942003162,0.10567505,56726.0,56725.0,0.08894]
[1725942003556,0.10567505,56727.0,56725.0,0.08894]
[1725942003754,0.10567505,56727.0,56725.0,0.0008]
[1725942003755,0.10567505,56726.0,56725.0,0.0008]
[1725942004058,0.088142,56724.0,56720.0,0.0041]
[1725942004257,0.16,56727.0,56719.0,0.02420412]
[1725942004258,0.088143,56723.0,56719.0,0.02420412]
[1725942004452,0.088143,56723.0,56718.0,0.088149]
[1725942004654,0.088143,56723.0,56718.0,0.248149]
[1725942005157,0.088143,56723.0,56719.0,0.088148]
[1725942005456,0.0477,56725.0,56722.0,0.16]
[1725942005959,0.13584,56725.0,56724.0,0.0008]
[1725942006159,0.02435708,56727.0,56724.0,0.0008]
[1725942006160,0.11249408,56727.0,56724.0,0.0008]
[1725942006349,0.088137,56727.0,56726.0,0.0008]
[1725942007360,0.11258257,56727.0,56726.0,0.0008]
[1725942007559,0.10560051,56730.0,56726.0,0.1608]
[1725942007756,0.088132,56730.0,56729.0,0.0008]
[1725942008060,0.088132,56730.0,56729.0,0.23122298]
[1725942008253,0.0041,56737.0,56729.0,0.1608]
[1725942008456,0.13753,56732.0,56731.0,0.0008]
[1725942009164,0.16138721,56732.0,56731.0,0.0008]
[1725942009965,0.0041,56737.0,56731.0,0.0008]
[1725942010156,0.16,56740.0,56731.0,0.0018]
[1725942010157,0.228323,56736.0,56731.0,0.0018]
[1725942010460,0.228323,56736.0,56732.0,0.07020523]
[1725942010658,0.088127,56733.0,56731.0,0.001]
[1725942011375,0.1412,56736.0,56731.0,0.002]
[1725942011556,0.229323,56736.0,56735.0,0.0008]
[1725942012265,0.228323,56736.0,56735.0,0.0008]
[1725942013757,0.0949,56736.0,56735.0,0.0018]
[1725942014073,0.0949,56736.0,56735.0,0.089924]
[1725942014762,0.0949,56736.0,56735.0,0.0018]
[1725942014763,0.183023,56736.0,56735.0,0.0018]
[1725942014963,0.183023,56736.0,56735.0,0.0028]
[1725942015380,0.183023,56736.0,56727.0,0.1641]
[1725942015381,1.38366,56736.0,56727.0,0.07430523]
[1725942015560,0.088134,56729.0,56727.0,0.07430523]
[1725942015868,0.088134,56729.0,56720.0,0.0041]
[1725942015869,0.088134,56729.0,56721.0,0.0041]
[1725942016060,0.088134,56729.0,56726.0,0.088138]
[1725942016261,0.088128,56733.0,56730.0,0.088132]
[1725942016568,0.088128,56733.0,56732.0,0.0008]
[1725942018364,0.090128,56733.0,56732.0,0.0018]
[1725942018760,0.339256,56733.0,56732.0,0.0028]
[1725942019365,1.468056,56733.0,56732.0,0.0028]
[1725942026982,1.379928,56733.0,56732.0,0.0028]
[1725942027175,1.468056,56733.0,56732.0,0.0028]
[1725942028873,0.091128,56733.0,56732.0,0.090929]
[1725942035081,0.091128,56733.0,56732.0,0.16113423]
[1725942035281,0.091128,56733.0,56732.0,0.090929]
[1725942035580,0.091128,56733.0,56732.0,0.32113423]
[1725942035581,0.003,56733.0,56732.0,0.32113423]
[1725942037985,0.003,56733.0,56732.0,0.250929]
[1725942038282,0.003,56733.0,56732.0,0.34657402]
[1725942038673,0.0008,56736.0,56735.0,0.088124]
[1725942038878,0.0008,56736.0,56735.0,0.34416902]
[1725942039889,0.0008,56736.0,56735.0,0.34516902]
[1725942040096,0.0008,56736.0,56735.0,0.18616902]
[1725942040278,0.088923,56736.0,56735.0,0.18616902]
[1725942040584,0.0008,56736.0,56735.0,0.18616902]
[1725942040773,0.0008,56736.0,56735.0,0.18516902]
[1725942040976,0.0008,56736.0,56735.0,0.18616902]
[1725942041385,0.0008,56736.0,56735.0,0.18516902]
[1725942041678,0.0008,56736.0,56735.0,0.18616902]
[1725942041883,0.0008,56736.0,56735.0,0.28266902]
[1725942042090,0.0008,56736.0,56735.0,0.30693485]
[1725942043385,0.0008,56736.0,56735.0,0.39467596]
[1725942043689,0.0008,56736.0,56735.0,0.21128983]
[1725942044187,0.088923,56736.0,56735.0,0.187024]
[1725942044488,0.088923,56736.0,56735.0,0.11929225]
[1725942044990,0.088923,56736.0,56735.0,0.0024]
[1725942045484,0.177046,56736.0,56735.0,0.0024]
[1725942048790,0.20082646,56736.0,56735.0,0.0024]
[1725942052287,0.28894946,56736.0,56735.0,0.0024]
[1725942052879,0.81770946,56736.0,56735.0,0.0024]
[1725942053082,1.41770946,56736.0,56735.0,0.0024]
[1725942053486,1.57770946,56736.0,56735.0,0.0024]
[1725942055491,0.088135,56728.0,56727.0,0.0041]
[1725942055693,0.08814,56725.0,56724.0,0.052701]
[1725942056094,0.08854,56725.0,56724.0,0.052701]
[1725942056288,0.08814,56725.0,56724.0,0.052701]
[1725942056791,0.088143,56723.0,56722.0,0.15833525]
[1725942056991,0.088543,56723.0,56722.0,0.15833525]
[1725942058893,0.088543,56723.0,56721.0,0.11671676]
[1725942058894,0.088144,56722.0,56721.0,0.11671676]
[1725942059094,0.088544,56722.0,56721.0,0.18701671]
[1725942059685,0.0004,56722.0,56721.0,0.20486276]
[1725942059882,0.0004,56722.0,56721.0,0.40537169]
[1725942060081,0.0004,56722.0,56721.0,0.50937169]
[1725942060494,0.0004,56722.0,56721.0,0.51437169]
[1725942060795,0.0004,56722.0,56721.0,0.51437718]
[1725942062088,0.0004,56722.0,56721.0,0.40873894]
[1725942062294,0.0004,56722.0,56721.0,0.51437718]
[1725942062995,0.0004,56728.0,56721.0,1.64325718]
[1725942063195,0.0004,56728.0,56727.0,0.188537]
[1725942063384,0.0004,56728.0,56727.0,0.237237]
[1725942063982,0.08813,56732.0,56727.0,0.1491]
[1725942064295,0.08813,56732.0,56731.0,0.08853]
[1725942065095,0.08913,56732.0,56731.0,0.08853]